bitfinex/quotes_BTCUSD_20240715
["timestamp","ask_amount","ask_price","bid_price","bid_amount"]
[1721070260427,0.5,63526.0,63525.0,0.01828678]
[1721070261865,0.5,63526.0,63525.0,0.001]
[1721070262260,0.5,63526.0,63524.0,0.0604]
[1721070262599,0.5,63526.0,63525.0,0.003]
[1721070262797,0.5,63526.0,63525.0,0.006]
[1721070262996,0.5,63526.0,63525.0,0.003]
[1721070263320,0.102,63530.0,63527.0,0.157412]
[1721070263515,0.102,63530.0,63528.0,0.05]
[1721070263516,0.002,63530.0,63528.0,0.05]
[1721070263917,0.002,63530.0,63529.0,0.1397]
[1721070264156,0.002,63530.0,63529.0,0.3485533]
[1721070264363,0.002,63530.0,63529.0,0.1911453]
[1721070264768,0.06083604,63530.0,63529.0,0.1911453]
[1721070264916,0.05883604,63530.0,63529.0,0.1911453]
[1721070265300,0.06083604,63530.0,63529.0,0.1911453]
[1721070265508,0.05883604,63530.0,63529.0,0.1911453]
[1721070265932,0.06283604,63530.0,63529.0,0.1911453]
[1721070266130,0.06283604,63530.0,63529.0,0.1397]
[1721070266131,0.54585204,63530.0,63529.0,0.1397]
[1721070266338,0.96066304,63530.0,63529.0,0.1397]
[1721070266737,0.901827,63530.0,63529.0,0.1397]
[1721070266952,0.96008284,63530.0,63529.0,0.1397]
[1721070267115,0.901827,63530.0,63529.0,0.1397]
[1721070267319,0.96008316,63530.0,63529.0,0.1397]
[1721070268146,0.94928316,63530.0,63529.0,0.1397]
[1721070268433,0.16225616,63530.0,63529.0,0.15367]
[1721070268666,0.104,63530.0,63529.0,0.15367]
[1721070268820,0.16256144,63530.0,63529.0,0.15367]
[1721070269256,0.31996644,63530.0,63529.0,0.15367]
[1721070269662,0.31996624,63530.0,63529.0,0.15367]
[1721070269905,0.81996624,63530.0,63529.0,0.1397]
[1721070270231,1.13468741,63530.0,63529.0,0.1397]
[1721070270435,1.44949841,63530.0,63529.0,0.1397]
[1721070270787,1.46029841,63530.0,63529.0,0.1397]
[1721070271621,1.13468741,63530.0,63529.0,0.1397]
[1721070271996,1.46029841,63530.0,63529.0,0.1397]
[1721070272198,1.46029841,63530.0,63521.0,0.0773]
[1721070272199,0.157425,63522.0,63521.0,0.0773]
[1721070272597,0.157421,63524.0,63521.0,0.0773]
[1721070272782,0.314845,63524.0,63521.0,0.0773]
[1721070273177,0.157423,63523.0,63521.0,0.0773]
[1721070273433,0.314832,63526.0,63522.0,0.05]
[1721070273636,0.21611242,63525.0,63522.0,0.049]
[1721070273865,0.6,63530.0,63523.0,0.3395122]
[1721070273866,0.05869442,63524.0,63523.0,0.3395122]
[1721070274098,0.914813,63530.0,63524.0,0.049]
[1721070274321,0.914813,63530.0,63526.0,0.049]
[1721070274322,0.05908683,63529.0,63526.0,0.049]
[1721070274596,0.21649583,63529.0,63527.0,0.0345404]
[1721070274751,0.21649683,63528.0,63527.0,0.0345404]
[1721070275158,0.798877,63526.0,63525.0,0.1443]
[1721070275367,0.85796383,63526.0,63525.0,0.1443]
[1721070275580,1.17279483,63526.0,63525.0,0.1443]
[1721070276227,1.21431107,63526.0,63525.0,0.1443]
[1721070276391,0.157428,63521.0,63520.0,0.0779]
[1721070276639,0.21642328,63521.0,63520.0,0.0779]
[1721070277138,0.21616508,63521.0,63520.0,0.0779]
[1721070278736,0.21716508,63521.0,63520.0,0.0859]
[1721070278966,0.53202108,63521.0,63520.0,0.0859]
[1721070279149,0.57050429,63521.0,63520.0,0.1605042]
[1721070279502,0.57250429,63521.0,63520.0,0.1745042]
[1721070279712,0.57250429,63521.0,63520.0,0.1675042]
[1721070279911,0.57277597,63521.0,63520.0,0.1675042]
[1721070280111,0.57377597,63521.0,63520.0,0.1765042]
[1721070280463,0.66733711,63521.0,63520.0,0.1765042]
[1721070280673,0.66733711,63521.0,63520.0,0.0939]
[1721070280873,0.66633711,63521.0,63520.0,0.0869]
[1721070281270,0.66733711,63521.0,63520.0,0.0939]
[1721070282235,0.66733711,63521.0,63520.0,0.0849]
[1721070282236,0.66533711,63521.0,63520.0,0.0849]
[1721070282436,0.66533711,63521.0,63520.0,0.0919]
[1721070282652,0.66633711,63521.0,63520.0,0.0919]
[1721070282854,0.66633711,63521.0,63520.0,0.0849]
[1721070283069,0.66733711,63521.0,63520.0,0.0939]
[1721070283268,0.6674017,63521.0,63520.0,0.0939]
[1721070283618,0.6674017,63521.0,63520.0,0.10993]
[1721070284236,0.3525457,63521.0,63520.0,0.10993]
[1721070284434,0.1951177,63521.0,63520.0,0.10993]
[1721070284838,0.3525457,63521.0,63520.0,0.10993]
[1721070285059,0.1951177,63521.0,63520.0,0.10993]
[1721070285651,0.3525457,63521.0,63520.0,0.10993]
[1721070286250,0.1951177,63521.0,63520.0,0.10993]
[1721070286507,0.04248321,63521.0,63520.0,0.10993]
[1721070286732,0.10157059,63521.0,63520.0,0.15893]
[1721070286940,0.19518462,63521.0,63520.0,0.10993]
[1721070288763,0.19518462,63521.0,63520.0,0.26736]
[1721070288976,0.19518462,63521.0,63520.0,1.007182]
[1721070289135,0.06207606,63521.0,63520.0,1.007182]
[1721070289467,0.06201317,63521.0,63520.0,1.007182]
[1721070289865,0.003,63521.0,63520.0,1.007182]
[1721070290033,0.06253634,63521.0,63520.0,1.007182]
[1721070290816,0.06253634,63521.0,63520.0,1.322043]
[1721070291223,0.06253634,63521.0,63520.0,1.522043]
[1721070291635,0.06253634,63521.0,63520.0,1.322043]
[1721070292510,0.06253634,63521.0,63520.0,1.322967]
[1721070293159,0.003,63521.0,63520.0,1.322967]
[1721070293693,0.06213309,63521.0,63520.0,1.322967]
[1721070295126,0.06213309,63521.0,63520.0,1.522967]
[1721070295365,0.06213309,63521.0,63520.0,1.622967]
[1721070296208,0.06213309,63521.0,63520.0,2.037828]
[1721070296415,0.003,63521.0,63520.0,2.037828]
[1721070296840,0.00084,63530.0,63529.0,0.83604]
[1721070297108,0.00084,63530.0,63529.0,0.97634]
[1721070297274,0.00084,63530.0,63529.0,0.97534]
[1721070297823,0.05934238,63530.0,63529.0,0.97534]
[1721070298039,0.06034238,63530.0,63529.0,0.98134]
[1721070298241,0.06034238,63530.0,63529.0,1.67720838]
[1721070299091,0.06034238,63530.0,63529.0,1.99202438]
[1721070299322,0.00184,63530.0,63529.0,1.99702438]
[1721070299566,0.00184,63530.0,63529.0,2.09702438]
[1721070299721,0.00084,63530.0,63529.0,2.09102438]
[1721070300148,0.00084,63530.0,63529.0,2.08602438]
[1721070300352,0.00084,63530.0,63529.0,1.86102438]
[1721070300752,0.00084,63530.0,63529.0,2.09802438]
[1721070300925,0.00084,63530.0,63529.0,1.828972]
[1721070301379,0.00084,63530.0,63529.0,1.09934]
[1721070302020,0.00084,63530.0,63529.0,0.672524]
[1721070302451,0.00084,63530.0,63529.0,0.98934]
[1721070302678,0.05910774,63530.0,63529.0,0.98934]
[1721070302847,0.05910774,63530.0,63529.0,1.00334]
[1721070303232,0.05910774,63530.0,63526.0,0.314829]
[1721070303430,0.05910774,63530.0,63522.0,0.047]
[1721070303431,0.0138,63525.0,63522.0,0.157423]
[1721070303678,0.314822,63528.0,63523.0,0.157423]
[1721070303679,0.05826774,63524.0,63523.0,0.157423]
[1721070303879,0.05826774,63527.0,63523.0,0.157423]
[1721070304195,0.05826774,63527.0,63521.0,0.314856]
[1721070304196,0.05852406,63526.0,63524.0,0.15742]
[1721070304369,0.05852406,63525.0,63524.0,0.15742]
[1721070304575,0.20456511,63529.0,63525.0,0.157418]
[1721070304777,0.0970316,63528.0,63525.0,0.157418]
[1721070304946,0.05852598,63527.0,63526.0,0.157415]
[1721070305153,0.05852598,63527.0,63526.0,0.0834093]
[1721070305459,0.05852598,63528.0,63524.0,0.15742]
[1721070305681,0.05852598,63528.0,63525.0,0.047]
[1721070305856,0.05852598,63527.0,63526.0,0.472245]
[1721070306218,0.0588824,63527.0,63526.0,0.157415]
[1721070306388,0.0588824,63527.0,63525.0,0.047]
[1721070306389,0.06194536,63529.0,63525.0,0.047]
[1721070306591,0.06194536,63529.0,63526.0,0.2420837]
[1721070306592,0.05888183,63528.0,63526.0,0.2420837]
[1721070307039,0.05888183,63528.0,63526.0,0.0846687]
[1721070307252,0.05888183,63527.0,63526.0,0.0846687]
[1721070307444,0.05888183,63528.0,63526.0,0.0756687]
[1721070307645,0.00306353,63529.0,63528.0,0.047]
[1721070307853,0.00084,63530.0,63529.0,0.047]
[1721070307854,0.00390353,63530.0,63529.0,0.047]
[1721070308098,0.06284934,63530.0,63529.0,0.519224]
[1721070308300,0.05978581,63530.0,63529.0,0.5868927]
[1721070308502,0.06051259,63530.0,63529.0,0.5868927]
[1721070308976,0.06051259,63530.0,63529.0,0.5858927]
[1721070309403,0.06051259,63530.0,63529.0,1.0407087]
[1721070309598,0.06051259,63530.0,63529.0,1.3615247]
[1721070309788,0.06051259,63530.0,63529.0,1.3675247]
[1721070309789,0.06151259,63530.0,63529.0,1.3675247]
[1721070310204,0.06151259,63530.0,63529.0,1.6675247]
[1721070310406,0.06143286,63530.0,63529.0,1.6675247]
[1721070310559,0.00184,63530.0,63529.0,1.4615247]
[1721070310782,0.00084,63530.0,63529.0,1.4615247]
[1721070311366,0.00084,63530.0,63529.0,1.4555247]
[1721070312309,0.00084,63530.0,63529.0,1.4665247]
[1721070312938,0.06101999,63530.0,63529.0,1.4795247]
[1721070313152,0.06101999,63530.0,63529.0,1.3795247]
[1721070313354,0.06101999,63530.0,63529.0,1.4795247]
[1721070314166,0.06001999,63530.0,63529.0,1.6685247]
[1721070314367,0.06001999,63530.0,63529.0,1.6555247]
[1721070314368,0.00084,63530.0,63529.0,1.6555247]
[1721070314807,0.00084,63530.0,63529.0,1.4685247]
[1721070315005,0.00184,63530.0,63529.0,1.4815247]
[1721070315976,0.00184,63530.0,63529.0,1.4685247]
[1721070316177,0.00184,63530.0,63529.0,1.3225247]
[1721070316378,0.06002049,63530.0,63529.0,1.3555247]
[1721070316576,0.06002049,63530.0,63529.0,1.4555247]
[1721070316799,0.06102049,63530.0,63529.0,1.4815247]
[1721070317217,0.00184,63530.0,63529.0,1.4815247]
[1721070317413,0.00084,63530.0,63529.0,1.4685247]
[1721070317816,0.06112079,63530.0,63529.0,1.4815247]
[1721070318272,0.0601202,63530.0,63529.0,1.4685247]
[1721070318917,0.0601202,63530.0,63529.0,1.4555247]
[1721070319127,0.0601202,63530.0,63529.0,1.4685247]
[1721070319518,0.0601202,63530.0,63529.0,1.4555247]
[1721070319720,0.0601202,63530.0,63529.0,1.4685247]
[1721070319925,0.0611202,63530.0,63529.0,1.4815247]
[1721070320162,0.0611202,63530.0,63529.0,1.6815247]
[1721070320367,0.00184,63530.0,63529.0,1.9963407]
[1721070320613,0.00306353,63545.0,63544.0,1.389297]
[1721070320751,0.00306353,63545.0,63544.0,1.689297]
[1721070320950,0.063083,63553.0,63552.0,0.832755]
[1721070321123,0.063083,63553.0,63552.0,0.899255]
[1721070321124,0.05928517,63553.0,63552.0,0.899255]
[1721070321329,0.157327,63562.0,63557.0,0.157337]
[1721070321609,0.05881147,63559.0,63557.0,0.408837]
[1721070321723,0.0767,63571.0,63567.0,0.156311]
[1721070321936,0.5,63574.0,63568.0,0.0202311]
[1721070321937,0.15215843,63570.0,63568.0,0.0202311]
[1721070322167,0.15215843,63569.0,63568.0,0.0202311]
[1721070322472,0.05881104,63569.0,63568.0,0.0202311]
[1721070323306,0.05881104,63569.0,63568.0,0.8067881]
[1721070323472,0.05881104,63569.0,63568.0,0.0212311]
[1721070323473,0.05868467,63569.0,63568.0,0.0212311]
[1721070324515,0.05820823,63569.0,63568.0,0.0212311]
[1721070325869,0.38762623,63569.0,63560.0,0.0609]
[1721070326072,0.172114,63567.0,63561.0,0.157327]
[1721070326271,0.05820823,63566.0,63561.0,0.157327]
[1721070326761,0.05820823,63566.0,63562.0,0.157325]
[1721070326964,0.05820823,63566.0,63563.0,0.157322]
[1721070327119,0.05820823,63565.0,63563.0,0.157322]
[1721070327303,0.05820823,63564.0,63563.0,0.157322]
[1721070327928,0.05820823,63564.0,63562.0,0.157325]
[1721070328129,0.172115,63567.0,63562.0,0.157325]
[1721070328130,0.05820823,63563.0,63562.0,0.157325]
[1721070328490,0.00083,63569.0,63563.0,0.157322]
[1721070328491,0.158141,63569.0,63563.0,0.157322]
[1721070328613,0.05873295,63568.0,63563.0,0.163322]
[1721070328810,0.172114,63567.0,63563.0,0.012]
[1721070329252,0.0148,63566.0,63563.0,0.006]
[1721070329513,0.07386388,63566.0,63563.0,0.006]
[1721070329721,0.172114,63567.0,63563.0,0.006]
[1721070329926,0.0590639,63566.0,63564.0,0.0792646]
[1721070330584,0.05901518,63565.0,63564.0,0.0792646]
[1721070331522,0.05901518,63565.0,63564.0,0.0822646]
[1721070331698,0.06409956,63565.0,63564.0,0.0822646]
[1721070332017,0.06409956,63565.0,63564.0,0.0792646]
[1721070332222,0.15735,63553.0,63551.0,0.0625]
[1721070332502,0.15735,63553.0,63546.0,0.0625]
[1721070332503,0.0148,63553.0,63546.0,0.0625]
[1721070332756,0.0148,63553.0,63544.0,0.08306353]
[1721070332757,0.486883,63548.0,63547.0,0.04603125]
[1721070332953,0.486883,63548.0,63537.0,0.00306353]
[1721070332954,0.157386,63538.0,63537.0,0.00306353]
[1721070333154,0.157386,63538.0,63528.0,0.146]
[1721070333155,0.157388,63537.0,63536.0,0.00306353]
[1721070333373,0.8471471,63537.0,63536.0,0.00306353]
[1721070333576,0.84763626,63537.0,63536.0,0.00306353]
[1721070333774,0.54765926,63537.0,63536.0,0.00306353]
[1721070333980,0.157396,63534.0,63529.0,0.220819]
[1721070334153,0.157405,63530.0,63529.0,0.000913]
[1721070334386,0.15785402,63530.0,63529.0,0.000913]
[1721070334564,0.86219597,63530.0,63529.0,0.000913]
[1721070334799,0.53258497,63530.0,63529.0,0.000913]
[1721070335015,0.21777397,63530.0,63529.0,0.000913]
[1721070335495,0.86219597,63530.0,63529.0,0.000913]
[1721070335661,0.86219597,63530.0,63529.0,0.003913]
[1721070335906,0.84739597,63530.0,63529.0,0.000913]
[1721070336300,0.84739597,63530.0,63529.0,0.00383618]
[1721070336507,0.84739597,63530.0,63529.0,0.00083618]
[1721070336690,1.17700697,63530.0,63529.0,0.00083618]
[1721070337068,1.27642267,63530.0,63529.0,0.00083618]
[1721070337689,1.27642267,63530.0,63529.0,0.00383618]
[1721070338099,1.27642267,63530.0,63529.0,0.00683618]
[1721070338403,1.27642267,63530.0,63529.0,0.00083618]
[1721070338612,1.27642267,63530.0,63529.0,0.00283618]
[1721070338983,1.26462267,63530.0,63529.0,0.00283618]
[1721070339192,0.32018967,63530.0,63529.0,0.00283618]
[1721070339390,0.63500067,63530.0,63529.0,0.00283618]
[1721070339806,0.57566502,63530.0,63529.0,0.00283618]
[1721070340019,0.64688477,63530.0,63529.0,0.00183618]
[1721070340331,0.96169577,63530.0,63529.0,0.00183618]
[1721070340949,0.96169577,63530.0,63529.0,0.00083618]
[1721070341173,0.96169577,63530.0,63529.0,0.00183618]
[1721070341840,0.96169577,63530.0,63529.0,0.00083618]
[1721070341841,0.94689577,63530.0,63529.0,0.00083618]
[1721070342066,0.94689577,63530.0,63529.0,0.00283618]
[1721070342067,0.21727377,63530.0,63529.0,0.00283618]
[1721070342344,0.21727377,63530.0,63529.0,1.6870178]
[1721070342345,0.00044902,63530.0,63529.0,1.6870178]
[1721070342543,0.00044902,63530.0,63529.0,1.7678178]
[1721070342734,0.157364,63547.0,63542.0,0.046]
[1721070342966,0.4863143,63550.0,63547.0,0.0808]
[1721070343198,0.314678,63557.0,63548.0,0.00808]
[1721070343393,0.157349,63553.0,63548.0,0.00808]
[1721070344522,0.00083,63569.0,63548.0,0.00808]
[1721070344523,0.5148,63560.0,63552.0,0.046]
[1721070344746,0.5148,63560.0,63553.0,0.472039]
[1721070344747,0.21602903,63559.0,63553.0,0.472039]
[1721070344969,0.21602903,63559.0,63550.0,0.046]
[1721070344970,0.0148,63566.0,63558.0,0.046]
[1721070345169,0.0148,63566.0,63557.0,0.314678]
[1721070345170,0.05906889,63565.0,63557.0,0.314678]
[1721070345392,0.05906889,63565.0,63562.0,0.157325]
[1721070345614,0.05906889,63564.0,63562.0,0.157325]
[1721070345814,0.157315,63567.0,63562.0,0.157325]
[1721070345815,0.05906889,63563.0,63562.0,0.157325]
[1721070346035,0.05905391,63563.0,63562.0,0.157325]
[1721070346240,0.05905391,63563.0,63561.0,0.157329]
[1721070346441,0.672118,63566.0,63560.0,0.15733]
[1721070346829,0.0007398,63562.0,63561.0,0.0535902]
[1721070347590,0.657317,63566.0,63561.0,0.2109182]
[1721070347788,0.06704538,63565.0,63563.0,0.157323]
[1721070347998,0.05887116,63564.0,63563.0,0.157323]
[1721070348349,0.05887116,63564.0,63562.0,0.02701378]
[1721070349440,0.00817422,63565.0,63562.0,0.02701378]
[1721070349565,0.05878953,63564.0,63562.0,0.02701378]
[1721070349791,0.00817422,63565.0,63563.0,0.02062562]
[1721070350024,0.05878953,63564.0,63563.0,0.02062562]
[1721070350458,0.05953926,63564.0,63563.0,0.02062562]
[1721070351494,0.07433926,63564.0,63563.0,0.02062562]
[1721070351841,0.486772,63563.0,63562.0,0.02701378]
[1721070352166,0.157334,63559.0,63555.0,0.157343]
[1721070352406,0.157334,63559.0,63553.0,0.0657]
[1721070352407,0.15805794,63558.0,63553.0,0.223047]
[1721070352814,0.00071994,63558.0,63554.0,0.157346]
[1721070354164,0.157342,63556.0,63552.0,0.046]
[1721070354367,0.00070504,63555.0,63553.0,0.0831262]
[1721070354866,0.00070504,63555.0,63554.0,0.046]
[1721070355254,0.157337,63558.0,63554.0,0.046]
[1721070355454,0.00816037,63555.0,63554.0,0.046]
[1721070355709,0.157337,63558.0,63554.0,0.0181034]
[1721070355940,0.00745533,63555.0,63554.0,0.0641034]
[1721070356112,0.157337,63558.0,63554.0,0.0751034]
[1721070356351,0.00745533,63555.0,63554.0,0.0751034]
[1721070356508,0.0148,63566.0,63559.0,0.157333]
[1721070356684,0.0148,63566.0,63558.0,0.046]
[1721070356685,0.37390438,63565.0,63560.0,0.0831262]
[1721070356890,0.05926538,63564.0,63560.0,0.0831262]
[1721070357110,0.21658738,63564.0,63560.0,0.0831262]
[1721070357478,0.05926538,63563.0,63561.0,0.0181034]
[1721070357879,0.05926538,63563.0,63562.0,0.157326]
[1721070358012,0.05926538,63563.0,63562.0,0.203326]
[1721070358210,0.05912135,63566.0,63564.0,0.0649]
[1721070358412,0.05912132,63566.0,63564.0,0.0649]
[1721070358613,0.21643832,63566.0,63564.0,0.0649]
[1721070358830,0.157317,63566.0,63565.0,0.0181034]
[1721070359033,0.21643958,63566.0,63565.0,0.0181034]
[1721070359229,0.157317,63566.0,63565.0,0.0181034]
[1721070359412,0.21650087,63566.0,63565.0,0.0181034]
[1721070360474,0.157319,63565.0,63564.0,0.0649]
[1721070360675,0.157322,63564.0,63561.0,0.0789]
[1721070360876,0.157322,63564.0,63555.0,0.2975]
[1721070360877,0.15733,63561.0,63556.0,0.0624]
[1721070361048,0.157336,63558.0,63557.0,0.0656036]
[1721070361294,0.21651987,63558.0,63557.0,0.0656036]
[1721070361486,0.157336,63558.0,63554.0,0.0756]
[1721070361692,0.05940688,63557.0,63554.0,0.232944]
[1721070361885,0.05940688,63557.0,63554.0,0.0756]
[1721070362087,0.00745394,63556.0,63555.0,0.0656052]
[1721070362292,0.00745394,63556.0,63551.0,0.0624]
[1721070362293,0.157351,63552.0,63551.0,0.0624]
[1721070362494,0.0148,63552.0,63544.0,0.0624]
[1721070362677,0.0148,63552.0,63545.0,0.21103238]
[1721070362678,0.157357,63550.0,63545.0,0.21103238]
[1721070362934,0.3369784,63552.0,63547.0,0.157363]
[1721070362935,0.1648284,63552.0,63547.0,0.157363]
[1721070363079,0.00748055,63549.0,63548.0,0.05062875]
[1721070363291,0.157352,63552.0,63548.0,0.05062875]
[1721070363597,0.829483,63556.0,63549.0,0.046]
[1721070363598,0.157349,63553.0,63549.0,0.046]
[1721070363826,0.06,63568.0,63549.0,0.046]
[1721070363827,0.0074764,63552.0,63551.0,0.660707]
[1721070364021,0.0074764,63552.0,63551.0,1.26956]
[1721070364022,0.01047158,63552.0,63551.0,1.26956]
[1721070364211,0.165654,63575.0,63568.0,0.471934]
[1721070364410,0.165654,63575.0,63568.0,1.20485887]
[1721070364411,0.00836,63575.0,63568.0,1.20485887]
[1721070365396,0.0148,63573.0,63568.0,0.89023587]
[1721070365597,0.0148,63573.0,63568.0,0.63873587]
[1721070366120,0.0148,63573.0,63568.0,0.64973587]
[1721070366323,0.157305,63571.0,63568.0,0.02520187]
[1721070366523,0.0148,63570.0,63568.0,0.02520187]
[1721070366823,0.01269524,63569.0,63568.0,0.04720187]
[1721070367916,0.01269524,63569.0,63568.0,0.03620187]
[1721070368117,0.01269524,63569.0,63568.0,0.02520187]
[1721070368330,0.01269524,63569.0,63568.0,0.03620187]
[1721070368529,0.01269524,63569.0,63568.0,0.04720187]
[1721070368530,0.07107219,63569.0,63568.0,0.04720187]
[1721070368739,0.07107219,63569.0,63568.0,0.03620187]
[1721070368932,0.07107219,63569.0,63568.0,0.02520187]
[1721070369130,0.07107219,63569.0,63568.0,0.03620187]
[1721070369339,0.24318119,63569.0,63568.0,0.022]
[1721070369541,0.55779919,63569.0,63568.0,0.022]
[1721070369745,0.85761719,63569.0,63568.0,0.022]
[1721070369950,0.54299919,63569.0,63568.0,0.022]
[1721070370164,0.55779919,63569.0,63568.0,0.033]
[1721070370371,0.54299919,63569.0,63568.0,0.033]
[1721070371215,0.54352263,63569.0,63568.0,0.033]
[1721070371389,0.55832263,63569.0,63568.0,0.011]
[1721070371569,0.157316,63567.0,63562.0,0.157325]
[1721070371777,0.38621928,63569.0,63560.0,0.046]
[1721070371778,0.05890604,63566.0,63563.0,0.215482]
[1721070371998,0.05890604,63565.0,63563.0,0.261482]
[1721070372211,0.05890604,63565.0,63563.0,0.215482]
[1721070372422,0.05890604,63565.0,63564.0,0.01767162]
[1721070374466,0.05902727,63565.0,63564.0,0.01767162]
[1721070374625,0.05902727,63565.0,63564.0,0.270045]
[1721070375001,0.05902727,63565.0,63564.0,0.598688]
[1721070375420,0.05902736,63565.0,63564.0,0.172724]
[1721070375629,0.05898556,63568.0,63564.0,0.441365]
[1721070375835,0.0589861,63568.0,63567.0,0.268514]
[1721070376120,0.0589861,63568.0,63567.0,0.617242]
[1721070376357,0.0589861,63568.0,63567.0,0.721401]
[1721070376569,0.0589861,63568.0,63567.0,1.036029]
[1721070376963,0.0589861,63568.0,63567.0,0.990029]
[1721070377166,0.05858472,63568.0,63567.0,0.990029]
[1721070377574,0.00083,63569.0,63568.0,0.517934]
[1721070377798,0.00083,63569.0,63568.0,1.05022862]
[1721070377973,0.00083,63569.0,63568.0,1.40172862]
[1721070378177,0.00083,63569.0,63568.0,1.51635162]
[1721070378356,0.00083,63569.0,63568.0,1.57915162]
[1721070378914,0.00083,63569.0,63568.0,1.12952862]
[1721070379098,0.00083,63569.0,63568.0,1.17552862]
[1721070379618,0.00083,63569.0,63568.0,1.16452862]
[1721070379818,0.00083,63569.0,63568.0,1.17852862]
[1721070380282,0.00083,63569.0,63568.0,1.18952862]
[1721070381702,0.00083,63569.0,63568.0,1.17852862]
[1721070381856,0.00083,63569.0,63568.0,1.19252862]
[1721070382071,0.00083,63569.0,63568.0,1.888204]
[1721070382253,0.00083,63569.0,63568.0,1.688204]
[1721070382895,0.00083,63569.0,63568.0,1.888204]
[1721070383363,0.00083,63569.0,63568.0,1.688204]
[1721070383702,0.00083,63569.0,63568.0,1.888204]
[1721070385745,0.00083,63569.0,63568.0,2.382527]
[1721070386153,0.00083,63569.0,63568.0,2.482527]
[1721070386751,0.00083,63569.0,63568.0,2.468527]
[1721070386950,0.00083,63569.0,63568.0,2.482527]
[1721070387301,0.00083,63569.0,63568.0,2.468527]
[1721070387502,0.00083,63569.0,63568.0,2.482527]
[1721070389542,0.00083,63569.0,63568.0,2.505527]
[1721070389747,0.00083,63569.0,63568.0,2.82015]
[1721070389949,0.00836,63575.0,63574.0,2.005273]
[1721070390155,0.00836,63575.0,63574.0,2.28217198]
[1721070390572,0.00836,63575.0,63574.0,2.59676598]
[1721070390768,0.00084,63582.0,63580.0,1.690574]
[1721070390920,0.00084,63582.0,63580.0,2.65225438]
[1721070391118,0.00836,63590.0,63580.0,2.65225438]
[1721070391119,0.00836,63590.0,63589.0,1.275897]
[1721070391343,0.00836,63590.0,63589.0,1.841916]
[1721070391542,0.00836,63590.0,63589.0,1.641916]
[1721070391747,0.00836,63590.0,63589.0,1.956435]
[1721070391925,0.00836,63590.0,63589.0,1.65958762]
[1721070392114,0.00836,63590.0,63589.0,1.55958762]
[1721070392363,0.00836,63590.0,63589.0,1.52758762]
[1721070392535,0.00836,63590.0,63589.0,1.25906862]
[1721070392989,0.00836,63590.0,63589.0,1.27306862]
[1721070393188,0.00336,63590.0,63589.0,1.27306862]
[1721070393809,0.00336,63590.0,63589.0,1.58758762]
[1721070394590,0.00336,63590.0,63589.0,1.68758762]
[1721070395419,0.00336,63590.0,63589.0,1.88758762]
[1721070397088,0.00336,63590.0,63589.0,2.20210662]
[1721070397216,0.00836,63592.0,63590.0,1.687399]
[1721070397415,0.00836,63592.0,63590.0,2.11142789]
[1721070397621,0.00834,63614.0,63608.0,0.517637]
[1721070397858,0.00834,63614.0,63608.0,0.889896]
[1721070398461,0.00834,63614.0,63608.0,1.204321]
[1721070398896,0.00834,63614.0,63608.0,0.058159]
[1721070398897,0.14596,63609.0,63608.0,0.058159]
[1721070399107,0.14596,63609.0,63597.0,0.6133]
[1721070399108,0.157213,63608.0,63603.0,0.157223]
[1721070399307,0.15438938,63609.0,63608.0,0.01]
[1721070399510,0.15438938,63609.0,63608.0,0.019]
[1721070399912,0.15438938,63609.0,63608.0,0.01]
[1721070400328,0.31159938,63609.0,63608.0,0.01]
[1721070400536,0.31159938,63609.0,63608.0,0.0267222]
[1721070400537,0.01678938,63609.0,63608.0,0.0267222]
[1721070400708,0.01678938,63609.0,63608.0,0.167212]
[1721070400910,0.01678938,63609.0,63608.0,0.157212]
[1721070401521,0.01678938,63609.0,63607.0,0.157214]
[1721070401734,0.01678938,63609.0,63608.0,0.01]
[1721070401941,0.17399938,63609.0,63608.0,0.0592653]
[1721070402203,0.17399938,63609.0,63608.0,0.01]
[1721070402442,0.01678938,63609.0,63608.0,0.019]
[1721070403900,0.01678938,63609.0,63608.0,0.490637]
[1721070404116,0.01678938,63609.0,63608.0,0.59872035]
[1721070404326,0.01678938,63609.0,63608.0,0.55272035]
[1721070404327,0.00836,63609.0,63608.0,0.55272035]
[1721070405734,0.01681688,63609.0,63608.0,0.55272035]
[1721070406546,0.01681688,63609.0,63608.0,0.91314535]
[1721070406761,0.00836,63609.0,63608.0,0.91314535]
[1721070407126,0.00836,63609.0,63608.0,0.86714535]
[1721070407311,0.00836,63609.0,63608.0,0.91314535]
[1721070407514,0.00836,63609.0,63608.0,1.22757035]
[1721070407717,0.00836,63609.0,63608.0,1.42757035]
[1721070408153,0.00836,63609.0,63608.0,1.41857035]
[1721070408599,0.00836,63609.0,63608.0,1.43257035]
[1721070408771,0.00836,63609.0,63608.0,1.22257035]
[1721070408983,0.00836,63609.0,63608.0,1.20857035]
[1721070409184,0.00836,63609.0,63608.0,1.22257035]
[1721070409348,0.00836,63609.0,63608.0,0.87614535]
[1721070409548,0.00836,63609.0,63608.0,0.92214535]
[1721070409838,0.00836,63609.0,63608.0,1.23657035]
[1721070409972,0.00836,63609.0,63608.0,0.92214535]
[1721070410418,0.00836,63609.0,63608.0,1.23657035]
[1721070411818,0.00836,63609.0,63608.0,0.87614535]
[1721070412025,0.00836,63609.0,63608.0,0.92214535]
[1721070412649,0.00836,63609.0,63608.0,1.23657035]
[1721070413756,0.00836,63609.0,63608.0,1.33657035]
[1721070414290,0.00836,63609.0,63608.0,1.53657035]
[1721070414647,0.00836,63609.0,63608.0,1.70067035]
[1721070414848,0.00836,63609.0,63608.0,2.09679535]
[1721070415406,0.00836,63609.0,63608.0,1.58237035]
[1721070415836,0.00836,63609.0,63608.0,1.56837035]
[1721070416052,0.00836,63609.0,63608.0,1.40837035]
[1721070416249,0.00836,63609.0,63608.0,0.028]
[1721070416784,0.16557,63609.0,63608.0,0.028]
[1721070416990,0.07945121,63609.0,63608.0,0.028]
[1721070417669,0.07945121,63609.0,63608.0,0.014]
[1721070418084,0.07945121,63609.0,63608.0,0.028]
[1721070418296,0.07945121,63609.0,63608.0,0.0954101]
[1721070419037,0.01645121,63609.0,63608.0,0.1094101]
[1721070419586,0.07385947,63609.0,63608.0,0.1094101]
[1721070419793,0.01645121,63609.0,63608.0,0.1094101]